bitfinex-derivatives/quotes_SOLF0:USTF0_20250328
["timestamp","ask_amount","ask_price","bid_price","bid_amount"]
[1743126450530,0.05121337,138.86,138.85,20.25126992]
[1743126451431,49.10806863,138.93,138.88,7.2021]
[1743126451622,7.2016,138.9,138.88,13.04726992]
[1743126451824,13.04726992,138.91,138.86,14.94876992]
[1743126452530,0.04781714,138.9,138.87,0.04602045]
[1743126453838,7.2022,138.89,138.87,0.04602045]
[1743126454032,0.04781714,138.9,138.88,13.04726992]
[1743126454432,0.04781714,138.9,138.89,20.24916992]
[1743126455736,23.00806863,138.95,138.9,7.2013]
[1743126455929,7.1996,138.94,138.89,13.04726992]
[1743126456131,9.96079871,138.95,138.91,20.24776992]
[1743126456430,9.96079871,138.95,138.93,13.04726992]
[1743126456835,10.0100102,138.95,138.93,13.09900924]
[1743126457436,0.04921149,138.95,138.93,13.09900924]
[1743126458733,7.1973,138.98,138.94,7.199]
[1743126459034,52.89046478,139.0,138.95,13.04726992]
[1743126459234,7.1976,138.98,138.95,13.04726992]
[1743126459841,0.05444512,138.98,138.95,20.29863187]
[1743126460640,0.05444512,138.98,138.95,13.09983187]
[1743126461140,39.12726992,139.04,138.97,20.24456992]
[1743126461341,39.12726992,139.04,138.99,13.04726992]
[1743126461535,13.04726992,139.04,138.99,13.04726992]
[1743126461731,7.1956,139.02,138.99,13.04726992]
[1743126461937,23.00806863,139.06,139.01,13.04726992]
[1743126462448,0.05409348,139.05,139.02,0.05397283]
[1743126463745,7.1945,139.04,139.02,0.05397283]
[1743126465244,7.1947,139.03,139.02,0.05397283]
[1743126465845,0.05409348,139.05,139.02,0.05397283]
[1743126466240,7.1947,139.03,139.02,0.05397283]
[1743126471245,7.1967,139.0,138.96,2.0852]
[1743126471449,46.38323707,139.02,138.96,9.2834]
[1743126471647,46.38323707,139.02,138.94,26.06]
[1743126472238,46.38323707,139.02,138.95,7.1988]
[1743126472444,7.25156463,138.99,138.97,0.05423896]
[1743126472650,0.05436463,138.99,138.97,0.05423896]
[1743126473149,7.1972,138.98,138.97,0.05423896]
[1743126476848,27.52043707,138.98,138.97,0.05423896]
[1743126480557,27.52043707,138.98,138.97,3.896e-05]
[1743126480762,7.2009,138.92,138.89,1.9168]
[1743126481054,20.32323707,138.93,138.86,7.203]
[1743126481253,46.38323707,138.93,138.84,26.06]
[1743126481455,7.2023,138.89,138.84,26.06]
[1743126481662,48.35753707,138.93,138.84,26.06]
[1743126481963,0.05362813,138.9,138.87,0.05432407]
[1743126482156,26.11362813,138.9,138.87,0.05432407]
[1743126482862,7.2019,138.89,138.87,0.05432407]
[1743126483655,7.2024,138.88,138.87,0.05432407]
[1743126483852,26.11362813,138.9,138.87,0.05432407]
[1743126484258,7.2024,138.88,138.87,0.05432407]
[1743126489363,7.2044,138.85,138.81,7.2059]
[1743126489564,26.08,138.88,138.8,46.40323707]
[1743126489765,26.08,138.88,138.84,7.2042]
[1743126489968,33.2828,138.88,138.84,7.2042]
[1743126490362,26.08,138.88,138.83,7.2047]
[1743126490564,7.25307597,138.87,138.85,0.04858722]
[1743126490866,20.29466501,138.87,138.85,0.04858722]
[1743126491766,7.2035,138.86,138.85,0.04858722]
[1743126492363,20.29446501,138.87,138.85,0.04858722]
[1743126492570,13.09136501,138.87,138.85,0.04858722]
[1743126494071,20.29436501,138.87,138.85,0.04858722]
[1743126494872,13.09136501,138.87,138.85,0.04858722]
[1743126495375,7.2035,138.86,138.85,0.04858722]
[1743126495576,13.09136501,138.87,138.85,0.04858722]
[1743126497273,20.29476501,138.87,138.85,0.04858722]
[1743126497474,13.09136501,138.87,138.85,0.04858722]
[1743126497870,7.2035,138.86,138.85,0.04858722]
[1743126499975,0.04977597,138.87,138.85,0.04858722]
[1743126500269,0.04977597,138.87,138.86,13.04158904]
[1743126500976,0.04977597,138.87,138.85,0.04858722]
[1743126501274,13.09136501,138.87,138.85,0.04858722]
[1743126501574,39.17136501,138.87,138.85,0.04858722]
[1743126501776,7.2035,138.86,138.85,0.04858722]
[1743126509579,27.58633099,138.86,138.85,0.04858722]
[1743126512588,7.2035,138.86,138.85,0.04858722]
[1743126513083,33.33297597,138.87,138.85,0.04858722]
[1743126513777,7.2035,138.86,138.85,0.04858722]
[1743126521283,26.12977597,138.87,138.85,0.04858722]
[1743126521488,33.33297597,138.87,138.85,0.04858722]
[1743126522183,7.2035,138.86,138.85,0.04858722]
[1743126522684,33.33287597,138.87,138.85,0.04858722]
[1743126522890,39.84319486,138.88,138.85,0.04858722]
[1743126523082,36.69709486,138.88,138.85,2.08558722]
[1743126523277,119.875771,138.9,138.89,7.2019]
[1743126523885,119.875771,138.9,138.86,20.38283099]
[1743126524091,119.875771,138.9,138.88,0.05417351]
[1743126524486,140.25860199,138.9,138.8,20.38283099]
[1743126524793,140.25860199,138.9,138.81,26.08]
[1743126525092,13.04006185,138.88,138.84,13.04006185]
[1743126525292,39.12006185,138.88,138.84,13.04006185]
[1743126525794,0.05140151,138.87,138.85,0.05498295]
[1743126526299,13.04006185,138.86,138.85,0.05498295]
[1743126526995,7.2035,138.86,138.85,0.05498295]
[1743126527191,20.43059137,138.87,138.78,26.08]
[1743126527395,22.38128986,138.87,138.78,26.08]
[1743126527786,7.2056,138.82,138.78,26.08]
[1743126527991,26.08,138.84,138.75,56.34858316]
[1743126528186,26.08,138.84,138.78,0.05220858]
[1743126528391,0.05280032,138.81,138.78,0.05220858]
[1743126531993,0.05280032,138.81,138.8,7.2066]
[1743126532194,0.05280032,138.81,138.78,0.05220858]
[1743126532395,0.05280032,138.81,138.79,7.2067]
[1743126532700,0.05280032,138.81,138.78,0.05220858]
[1743126533703,0.05280032,138.81,138.79,7.2067]
[1743126535894,0.05280032,138.81,138.8,7.2066]
[1743126540302,26.08,138.86,138.83,7.2049]
[1743126541003,26.08,138.87,138.83,7.2049]
[1743126541502,0.05276635,138.86,138.84,0.05536832]
[1743126541699,0.05276635,138.86,138.84,7.25976832]
[1743126542099,0.05276635,138.86,138.85,7.204]
[1743126544199,0.05276635,138.86,138.84,33.33966832]
[1743126544505,0.05276635,138.86,138.84,26.13536832]
[1743126545099,0.05276635,138.86,138.85,7.204]
[1743126550910,0.05276635,138.86,138.85,20.2401447]
[1743126552009,0.05276635,138.86,138.85,13.0361447]
[1743126552310,13.08891105,138.86,138.84,0.05536832]
[1743126553212,26.08,138.85,138.79,20.2427447]
[1743126553413,13.0361447,138.84,138.79,20.2427447]
[1743126553712,7.2054,138.83,138.79,20.2427447]
[1743126554217,0.04708829,138.82,138.8,0.05219424]
[1743126556814,7.2061,138.81,138.8,0.05219424]
[1743126557009,26.12708829,138.82,138.75,26.08]
[1743126557215,7.207,138.8,138.76,7.2084]
[1743126557823,7.2073,138.79,138.75,7.209]
[1743126558119,7.2073,138.79,138.76,0.05273068]
[1743126558316,0.0516468,138.78,138.76,0.05273068]
[1743126559123,0.0516468,138.78,138.77,7.2081]
[1743126559424,0.0516468,138.78,138.76,0.05273068]
[1743126559827,0.0516468,138.78,138.76,7.26103068]
[1743126560027,0.0516468,138.78,138.76,0.05273068]
[1743126560724,0.0516468,138.78,138.77,7.2081]
[1743126566930,0.0516468,138.78,138.76,7.26143068]
[1743126567231,0.0516468,138.78,138.76,0.05273068]
[1743126567631,0.0516468,138.78,138.77,7.2081]
[1743126570837,0.0516468,138.78,138.76,7.26123068]
[1743126572935,0.0516468,138.78,138.76,0.05273068]
[1743126573237,20.43983909,138.78,138.7,46.46819229]
[1743126573432,22.36319229,138.78,138.7,46.46819229]
[1743126574126,7.2089,138.76,138.72,7.2105]
[1743126574326,0.05083132,138.75,138.73,0.04564174]
[1743126574533,7.26033132,138.75,138.73,0.04564174]
[1743126574732,0.05083132,138.75,138.73,0.04564174]
[1743126574935,0.05083132,138.75,138.74,13.054864]
[1743126575236,0.05083132,138.75,138.74,20.264564]
[1743126576536,7.2063,138.81,138.74,20.264564]
[1743126576537,39.134864,138.82,138.77,7.2078]
[1743126576834,39.134864,138.82,138.77,20.262664]
[1743126577030,46.340764,138.82,138.77,20.262664]
[1743126577230,39.134864,138.82,138.77,13.054864]
[1743126577430,13.054864,138.82,138.77,13.054864]
[1743126577631,0.05531071,138.81,138.78,0.05162793]
[1743126577832,0.05531071,138.81,138.79,7.2067]
[1743126578033,0.05531071,138.81,138.78,0.05162793]
[1743126578932,0.05531071,138.81,138.78,7.25892793]
[1743126581642,7.26151071,138.81,138.78,0.05162793]
[1743126582746,7.2066,138.8,138.78,0.05162793]
[1743126583140,0.05531071,138.81,138.78,0.05162793]
[1743126583341,7.26151071,138.81,138.78,7.25922793]
[1743126583845,0.05531071,138.81,138.78,7.25922793]
[1743126584146,0.05531071,138.81,138.79,20.39119245]
[1743126585046,0.05531071,138.81,138.8,7.2066]
[1743126585551,2.0231,138.87,138.79,46.47119245]
[1743126585748,2.0231,138.87,138.81,20.39119245]
[1743126586850,0.04860878,138.85,138.83,0.04617334]
[1743126587750,0.04860878,138.85,138.84,7.2042]
[1743126587951,0.04860878,138.85,138.83,0.04617334]
[1743126588347,0.04860878,138.85,138.83,7.25087334]
[1743126589546,0.04860878,138.85,138.84,7.2045]
[1743126592957,28.1076,138.9,138.87,7.2027]
[1743126593454,2.0276,138.9,138.87,7.2026]
[1743126593859,26.08,138.91,138.85,26.08]
[1743126594059,0.05135299,138.9,138.88,7.2021]
[1743126595453,0.05135299,138.9,138.87,0.05303943]
[1743126595663,0.05135299,138.9,138.87,20.44423188]
[1743126596161,0.05135299,138.9,138.88,7.2024]
[1743126596755,0.05135299,138.9,138.89,7.2019]
[1743126599361,0.05135299,138.9,138.88,26.08]
[1743126602264,0.05135299,138.9,138.87,20.28800246]
[1743126602566,7.25295299,138.9,138.87,20.28800246]
[1743126602766,0.05135299,138.9,138.87,0.05303943]
[1743126603067,26.06,138.89,138.87,0.05303943]
[1743126603366,13.03256303,138.88,138.81,13.03256303]
[1743126603567,13.03256303,138.86,138.81,13.03256303]
[1743126603757,7.2043,138.85,138.81,13.03256303]
[1743126604366,0.04600936,138.84,138.82,0.04543619]
[1743126604567,0.04600936,138.84,138.82,7.25063619]
[1743126607271,0.04600936,138.84,138.83,7.205]
[1743126607574,0.04600936,138.84,138.82,0.04543619]
[1743126607872,0.04600936,138.84,138.82,7.25053619]
[1743126608171,0.04600936,138.84,138.82,0.04543619]
[1743126609673,46.45929903,138.83,138.76,26.08]
[1743126609874,2.0674,138.82,138.76,7.2085]
[1743126610675,0.04547527,138.8,138.78,0.05067209]
[1743126611272,0.04547527,138.8,138.78,7.25797209]
[1743126611473,0.04547527,138.8,138.78,0.05067209]
[1743126614770,0.04547527,138.8,138.79,7.2071]
[1743126614971,0.04547527,138.8,138.78,0.05067209]
[1743126615271,0.04547527,138.8,138.78,7.25817209]
[1743126615865,0.04547527,138.8,138.78,0.05067209]
[1743126616264,7.2076,138.79,138.72,26.08]
[1743126616569,26.08,138.8,138.71,46.45929903]
[1743126616970,7.2074,138.79,138.71,20.37929903]
[1743126617268,7.2074,138.79,138.71,46.45929903]
[1743126617468,0.05326103,138.76,138.74,0.05193914]
[1743126617876,0.05326103,138.76,138.75,7.2092]
[1743126619178,0.05326103,138.76,138.74,7.26143914]
[1743126619379,0.05326103,138.76,138.74,0.05193914]
[1743126619773,7.26196103,138.76,138.74,0.05193914]
[1743126619972,0.05326103,138.76,138.74,0.05193914]
[1743126620775,0.05326103,138.76,138.75,7.2092]
[1743126631293,0.05326103,138.76,138.74,7.26143914]
[1743126633892,0.05326103,138.76,138.75,7.2092]
[1743126634092,0.05326103,138.76,138.74,0.05193914]
[1743126634687,7.26216103,138.76,138.74,0.05193914]
[1743126635395,0.05326103,138.76,138.74,0.05193914]
[1743126639397,7.26206103,138.76,138.74,0.05193914]
[1743126639590,0.05326103,138.76,138.74,0.05193914]
[1743126641592,7.26196103,138.76,138.74,0.05193914]
[1743126641898,0.05326103,138.76,138.74,7.26133914]
[1743126642995,7.26196103,138.76,138.74,0.05193914]
[1743126643295,0.05326103,138.76,138.74,0.05193914]
[1743126645396,0.05326103,138.76,138.75,7.2092]
[1743126645796,0.05326103,138.76,138.74,7.26143914]
[1743126645992,0.05326103,138.76,138.74,0.05193914]
[1743126646395,0.05326103,138.76,138.75,7.2092]
[1743126647490,0.05326103,138.76,138.74,20.31685012]
[1743126648606,0.05326103,138.76,138.75,7.2092]
[1743126653605,0.05326103,138.76,138.74,20.31685012]
[1743126653806,0.05326103,138.76,138.74,7.26143914]
[1743126654005,13.10867201,138.76,138.74,7.26163914]
[1743126654206,13.10867201,138.76,138.74,0.05193914]
[1743126655703,0.05326103,138.76,138.75,7.2092]
[1743126661331,6.103e-05,138.76,138.75,7.2092]
[1743126669243,6.103e-05,138.76,138.74,7.26163914]
[1743126670637,2.06286103,138.76,138.74,0.05193914]
[1743126671345,2.06286103,138.76,138.74,7.26133914]
[1743126671533,2.06286103,138.76,138.74,0.05193914]
[1743126672743,2.06286103,138.76,138.75,7.2092]
[1743126673146,6.103e-05,138.76,138.75,7.2092]
[1743126679349,6.103e-05,138.76,138.74,7.26143914]
[1743126685046,7.20886103,138.76,138.74,0.05193914]
[1743126685247,9.17516103,138.76,138.73,7.21]
[1743126685947,20.26461098,138.75,138.72,7.2105]
[1743126686353,20.26461098,138.75,138.72,7.26600152]
[1743126688658,13.05541098,138.75,138.73,7.21]
[1743126689055,1.96636103,138.76,138.72,13.1109125]
[1743126689647,1.96636103,138.76,138.73,7.2099]
[1743126689860,1.96636103,138.76,138.72,13.1109125]
[1743126690359,7.2093,138.75,138.72,20.3212125]
[1743126690551,1.96636103,138.76,138.72,13.1109125]
[1743126692064,9.17506103,138.76,138.73,7.2098]
[1743126692254,9.17506103,138.76,138.72,0.05550152]
[1743126692255,13.05541098,138.75,138.72,0.05550152]
[1743126692760,13.05541098,138.75,138.73,7.2102]
[1743126694356,20.26481098,138.75,138.72,7.26620152]
[1743126694661,20.26481098,138.75,138.72,0.05550152]
[1743126694964,20.26481098,138.75,138.72,7.26600152]
[1743126695161,13.05541098,138.75,138.72,0.05550152]
[1743126695550,13.05541098,138.75,138.73,7.2101]
[1743126695860,20.26471098,138.75,138.72,0.05550152]
[1743126696063,20.26471098,138.75,138.72,7.26580152]
[1743126696362,13.05541098,138.75,138.72,0.05550152]
[1743126697569,13.05541098,138.73,138.72,0.05550152]
[1743126697865,13.05541098,138.75,138.72,0.05550152]
[1743126698260,7.2101,138.74,138.72,0.05550152]
[1743126699464,20.26471098,138.75,138.72,0.05550152]
[1743126699966,20.26471098,138.75,138.72,7.26600152]
[1743126701276,7.2097,138.74,138.72,7.26600152]
[1743126701778,7.2097,138.74,138.72,0.05550152]
[1743126702077,20.26481098,138.75,138.72,0.05550152]
[1743126702979,20.26481098,138.75,138.72,7.26620152]
[1743126704171,7.2098,138.74,138.72,0.05550152]
[1743126706481,7.2102,138.73,138.72,0.05550152]
[1743126708780,20.26561098,138.73,138.72,0.05550152]
[1743126710481,13.05541098,138.73,138.72,0.05550152]
[1743126710680,13.05541098,138.75,138.72,0.05550152]
[1743126710981,7.2097,138.74,138.72,0.05550152]
[1743126715286,20.26481098,138.75,138.72,7.26610152]
[1743126716382,20.26481098,138.75,138.72,0.05550152]
[1743126716689,7.2099,138.74,138.72,0.05550152]
[1743126719389,7.2102,138.73,138.72,0.05550152]
[1743126719686,20.26561098,138.73,138.72,0.05550152]
[1743126719885,13.05541098,138.73,138.72,0.05550152]
[1743126720691,20.26561098,138.73,138.72,0.05550152]
[1743126720890,13.05541098,138.73,138.69,7.2121]
[1743126721190,13.05541098,138.71,138.66,13.05541098]
[1743126721389,20.26711098,138.71,138.68,7.2126]
[1743126721992,20.31333055,138.71,138.68,7.26353382]
[1743126722490,13.10163055,138.71,138.69,7.2122]
[1743126724796,20.31293055,138.71,138.68,7.26353382]
[1743126725387,13.10163055,138.71,138.69,7.2122]
[1743126726796,20.31293055,138.71,138.69,7.2122]
[1743126727198,20.31293055,138.71,138.68,7.26353382]
[1743126728791,13.10163055,138.71,138.69,7.2123]
[1743126730098,20.31293055,138.71,138.69,7.2123]
[1743126730601,20.31293055,138.71,138.68,7.26363382]
[1743126730990,20.26771098,138.69,138.68,0.05093382]
[1743126731299,13.05541098,138.69,138.61,39.13541098]
[1743126731492,13.05541098,138.67,138.61,39.13541098]
[1743126731691,20.26921098,138.67,138.63,7.2151]
[1743126732295,7.26865783,138.66,138.64,0.0482212]
[1743126733399,0.05475783,138.66,138.64,0.0482212]
[1743126734001,0.05475783,138.66,138.64,7.2630212]
[1743126737001,7.26865783,138.66,138.64,0.0482212]
[1743126737205,13.05541098,138.65,138.64,0.0482212]
[1743126737897,20.27541098,138.65,138.53,259.58]
[1743126738201,13.05541098,138.63,138.61,7.2163]
[1743126738908,13.11050644,138.63,138.61,7.27094631]
[1743126740105,13.11050644,138.63,138.61,0.05464631]
[1743126740999,20.32620644,138.63,138.61,0.05464631]
[1743126741607,7.2159,138.62,138.61,0.05464631]
[1743126741808,7.2159,138.62,138.58,7.2176]
[1743126742009,7.2159,138.62,138.57,13.05541098]
[1743126742209,20.32610644,138.63,138.59,7.2172]
[1743126742611,13.11050644,138.63,138.59,7.2172]
[1743126742799,20.32620644,138.63,138.6,7.2169]
[1743126743004,13.11050644,138.63,138.6,0.05145968]
[1743126744104,13.11050644,138.63,138.61,7.2162]
[1743126744304,13.11050644,138.63,138.6,0.05145968]
[1743126744609,20.32620644,138.63,138.6,7.26825968]
[1743126745512,20.32620644,138.63,138.6,0.05145968]
[1743126746013,13.05541098,138.61,138.55,13.05541098]
[1743126746207,13.05541098,138.6,138.55,13.05541098]
[1743126747009,0.05504315,138.59,138.56,0.04876758]
[1743126747211,0.05504315,138.59,138.57,7.2185]
[1743126747410,0.05504315,138.59,138.56,0.04876758]
[1743126748410,13.05541098,138.58,138.56,0.04876758]
[1743126749004,20.27361098,138.58,138.56,0.04876758]
[1743126749201,13.05541098,138.58,138.56,0.04876758]
[1743126749705,13.05541098,138.57,138.54,7.2199]
[1743126749905,13.05541098,138.57,138.55,7.2196]
[1743126750515,13.05541098,138.57,138.54,7.2199]
[1743126750913,13.10601636,138.57,138.54,7.2199]
[1743126751302,20.32461636,138.57,138.52,13.05541098]
[1743126751503,13.10601636,138.57,138.52,13.05541098]
[1743126751714,13.05541098,138.56,138.52,13.05541098]
[1743126751907,20.27541098,138.55,138.51,26.08]
[1743126752102,20.27541098,138.55,138.5,13.05541098]
[1743126752615,0.04868348,138.54,138.51,7.2216]
[1743126752809,7.26888348,138.54,138.5,13.05541098]
[1743126753010,7.26888348,138.54,138.5,7.2217]
[1743126753011,13.05541098,138.53,138.5,7.2217]
[1743126753202,13.05541098,138.53,138.49,13.05541098]
[1743126753613,13.05541098,138.53,138.5,7.2218]
[1743126755409,13.05541098,138.53,138.51,7.2217]
[1743126755615,0.04868348,138.54,138.51,7.2217]
[1743126756112,0.04868348,138.54,138.52,7.221]
[1743126756314,0.04868348,138.54,138.53,13.05541098]
[1743126756914,0.04868348,138.54,138.53,20.27601098]
[1743126759012,0.04868348,138.54,138.51,13.05541098]
[1743126759208,0.04868348,138.54,138.5,39.15541098]
[1743126760819,0.04868348,138.54,138.52,7.2211]
[1743126762218,0.04868348,138.54,138.51,7.2215]
[1743126762615,13.05541098,138.53,138.49,13.05541098]
[1743126762822,13.05541098,138.51,138.45,26.1]
[1743126763008,13.05541098,138.51,138.46,13.05541098]
[1743126763213,0.04670459,138.49,138.46,13.05541098]
[1743126764616,0.04670459,138.49,138.48,20.27861098]
[1743126766023,0.04670459,138.49,138.46,39.15541098]
[1743126766618,0.04670459,138.49,138.48,7.2232]
[1743126768224,2.0895,138.54,138.48,7.2232]
[1743126768225,39.15541098,138.56,138.52,7.2211]
[1743126768816,7.2196,138.55,138.51,7.2215]
[1743126769324,0.0482197,138.54,138.52,0.05053373]
[1743126773628,0.0482197,138.54,138.52,7.27153373]
[1743126774830,0.0482197,138.54,138.53,7.2206]
[1743126780639,13.05541098,138.6,138.57,7.2184]
[1743126780937,41.10481098,138.61,138.57,7.2184]
[1743126781234,13.05541098,138.59,138.54,26.1]
[1743126781429,13.05541098,138.59,138.53,13.05541098]
[1743126781728,7.27016077,138.57,138.55,0.05235244]
[1743126782431,0.05116077,138.57,138.55,0.05235244]
[1743126783929,0.05116077,138.57,138.55,7.27195244]
[1743126784132,0.05116077,138.57,138.55,0.05235244]
[1743126784339,7.26976077,138.57,138.55,0.05235244]
[1743126784726,0.05116077,138.57,138.55,0.05235244]
[1743126785034,0.05116077,138.57,138.55,7.27175244]
[1743126788038,0.05116077,138.57,138.55,0.05235244]
[1743126790237,7.26976077,138.57,138.55,0.05235244]
[1743126794140,0.05116077,138.57,138.55,7.27195244]
[1743126795038,0.05116077,138.57,138.56,7.2191]
[1743126795445,0.05116077,138.57,138.55,0.05235244]
[1743126796035,7.27016077,138.57,138.55,0.05235244]
[1743126802454,0.05116077,138.57,138.55,7.27185244]
[1743126803155,0.05116077,138.57,138.56,7.2191]
[1743126806059,0.05116077,138.57,138.55,7.27185244]
[1743126806961,7.26966077,138.57,138.55,0.05235244]
[1743126807260,13.10657175,138.57,138.55,0.05235244]
[1743126807462,7.2191,138.56,138.55,0.05235244]
[1743126808561,20.32537175,138.57,138.55,0.05235244]
[1743126809765,0.05116077,138.57,138.55,0.05235244]
[1743126812167,0.05116077,138.57,138.55,7.27165244]
[1743126812967,7.26976077,138.57,138.55,0.05235244]
[1743126814670,0.05116077,138.57,138.55,7.27185244]
[1743126815073,0.05116077,138.57,138.55,0.05235244]
[1743126816474,0.05116077,138.57,138.56,7.2191]
[1743126822074,0.05116077,138.57,138.55,0.05235244]
[1743126822773,7.26996077,138.57,138.55,0.05235244]
[1743126825679,0.05116077,138.57,138.55,7.27195244]
[1743126826580,0.05116077,138.57,138.56,7.2191]
[1743126830176,28.1572,138.63,138.58,13.05541098]
[1743126830377,2.0772,138.63,138.58,13.05541098]
[1743126830679,2.0772,138.63,138.6,7.2167]
[1743126831175,9.34543704,138.63,138.6,7.26760577]
[1743126831475,13.05541098,138.62,138.56,26.08]
[1743126831682,13.05541098,138.59,138.54,13.05541098]
[1743126832180,7.2183,138.58,138.55,7.2193]
[1743126832484,20.27311098,138.59,138.55,7.2193]
[1743126832680,0.05283214,138.58,138.55,7.2684614]
[1743126834181,0.05283214,138.58,138.56,7.219]
[1743126834875,0.05283214,138.58,138.55,0.0491614]
[1743126835080,0.05283214,138.58,138.57,7.2185]
[1743126846585,1.9182,138.65,138.57,26.06]
[1743126846787,26.06,138.66,138.62,13.05541098]
[1743126847293,1.9697,138.67,138.62,13.05541098]
[1743126847480,23.09496343,138.68,138.62,13.05541098]
[1743126847988,0.04825923,138.66,138.64,0.04731878]
[1743126848788,0.04825923,138.66,138.64,7.26221878]
[1743126848986,0.04825923,138.66,138.64,0.04731878]
[1743126851593,0.04825923,138.66,138.64,13.10272976]
[1743126851791,0.04825923,138.66,138.64,20.31752976]
[1743126854993,0.04825923,138.66,138.65,7.2144]
[1743126855386,13.05541098,138.72,138.64,13.10272976]
[1743126855590,39.11541098,138.72,138.67,13.05541098]
[1743126856293,7.2121,138.7,138.67,20.26871098]
[1743126856796,7.26022711,138.7,138.67,20.32162515]
[1743126859789,0.04812711,138.7,138.68,7.2126]
[1743126860191,0.04812711,138.7,138.69,20.26771098]
[1743126861900,26.04,138.76,138.69,20.26771098]
[1743126861901,29.9926,138.78,138.74,7.2095]
[1743126862098,3.9526,138.78,138.74,7.2095]
[1743126862297,3.9526,138.78,138.73,20.26551098]
[1743126862596,3.9526,138.78,138.73,13.05541098]
[1743126862991,3.9526,138.78,138.74,0.04993038]
[1743126862992,0.04587102,138.77,138.74,0.04993038]
[1743126863300,13.05541098,138.75,138.69,13.05541098]
[1743126863499,7.2111,138.72,138.68,13.05541098]
[1743126864297,7.2113,138.71,138.68,13.05541098]
[1743126864492,0.04760209,138.71,138.69,0.05519981]
[1743126866599,7.25890209,138.71,138.69,0.05519981]
[1743126868003,0.04760209,138.71,138.69,0.05519981]
[1743126868202,0.04760209,138.71,138.7,13.05541098]
[1743126871404,7.25890209,138.71,138.7,13.05541098]
[1743126871799,0.04760209,138.71,138.7,13.05541098]
[1743126872901,0.04760209,138.71,138.7,20.26721098]
[1743126873304,0.04760209,138.71,138.7,13.05541098]
[1743126876406,13.10301307,138.71,138.69,0.05519981]
[1743126876906,0.04760209,138.71,138.69,0.05519981]
[1743126877410,0.04760209,138.71,138.69,7.26709981]
[1743126878713,0.04760209,138.71,138.69,0.05519981]
[1743126879203,13.10301307,138.71,138.66,13.05541098]
[1743126879405,15.01861307,138.71,138.66,13.05541098]
[1743126880504,15.01861307,138.71,138.67,0.04755439]
[1743126882615,7.2127,138.69,138.67,0.04755439]
[1743126885713,7.2128,138.68,138.67,0.04755439]
[1743126886821,20.26791098,138.69,138.67,0.04755439]
[1743126888628,46.30741098,138.7,138.67,7.26055439]
[1743126888924,33.252,138.7,138.67,7.26055439]
[1743126890912,33.252,138.7,138.67,0.04755439]
[1743126891416,7.2124,138.69,138.67,0.04755439]
[1743126892927,33.252,138.7,138.67,7.26085439]
[1743126893518,26.04,138.7,138.67,0.04755439]
[1743126894022,7.2126,138.69,138.67,0.04755439]
[1743126895528,7.2128,138.68,138.67,0.04755439]
[1743126899134,7.2144,138.65,138.61,13.05541098]
[1743126899322,20.26981098,138.65,138.61,13.05541098]
[1743126899521,20.26981098,138.65,138.61,20.27151098]
[1743126899936,7.215,138.64,138.61,7.2161]
[1743126900128,0.05431195,138.64,138.62,0.052746]
[1743126900626,13.05541098,138.63,138.57,13.05541098]
[1743126900825,13.05541098,138.61,138.57,13.05541098]
[1743126901232,20.27211098,138.61,138.57,20.27361098]
[1743126901429,13.05541098,138.61,138.57,20.27361098]
[1743126901619,0.04808871,138.6,138.58,0.04564053]
[1743126904229,0.04808871,138.6,138.58,7.26354053]
[1743126905237,0.04808871,138.6,138.58,0.04564053]
[1743126906234,0.04808871,138.6,138.58,7.26334053]
[1743126906441,13.05541098,138.59,138.58,0.04564053]
[1743126906641,13.05541098,138.59,138.55,20.27491098]
[1743126906938,13.05541098,138.59,138.53,13.05541098]
[1743126907340,26.04,138.58,138.53,13.05541098]
[1743126907732,0.05297647,138.57,138.53,13.05541098]
[1743126908035,0.05297647,138.57,138.54,7.22]
[1743126909543,0.05297647,138.57,138.55,7.2195]
[1743126911848,0.05297647,138.57,138.56,7.2191]
[1743126914047,0.05297647,138.57,138.55,20.27501098]
[1743126914244,0.05297647,138.57,138.55,13.05541098]
[1743126914450,0.05297647,138.57,138.53,13.05541098]
[1743126914746,0.05297647,138.57,138.54,7.2197]
[1743126916147,0.05297647,138.57,138.55,7.2196]
[1743126917544,0.05297647,138.57,138.53,13.05541098]
[1743126917943,0.05297647,138.57,138.55,7.2191]
[1743126918954,0.05297647,138.57,138.56,7.2191]
[1743126920251,0.05297647,138.57,138.55,7.2195]
[1743126920449,13.10838745,138.57,138.53,13.05541098]
[1743126921249,20.32698745,138.57,138.53,20.27571098]
[1743126921751,20.32698745,138.57,138.51,26.04]
[1743126921752,13.05541098,138.55,138.51,7.2214]
[1743126921954,39.09541098,138.55,138.51,7.2214]
[1743126922152,39.09541098,138.55,138.5,13.05541098]
[1743126922650,0.04956117,138.54,138.5,13.05541098]